Cogmind - Beta 15 @@@ ROGUE MODE // 2025.05.29 @ 01:13:33 Player: Peck-R-INE-1 Result: Destroyed by G-34 Mercenary with Small Laser Performance ------------- Evolutions (0) 0 Regions Visited (4) 800 Robots Destroyed (15) 75 Value Destroyed (194) 194 Prototype IDs (23) 460 Alien Tech Used (0) 0 Bonus (300) 300 TOTAL SCORE: 1829 Bonus ------- Aligned with FarCom 300 Cogmind --------- Core Integrity 0/250 Matter 300/300 Energy 125/125 System Corruption 0% Temperature Cool (76) Movement Rolling (115) Ox1 Location -9/Mines Parts ------- > --- POWER (1) -------- Light Ion Engine > --- PROPULSION (2) --- Compact Wheel > --- UTILITY (2) ------ Large Storage Unit Improved Terrain Scanner > --- WEAPON (2) ------- Small Laser Light Assault Rifle > --- INVENTORY (15) --- Small Storage Unit Lightpack 2.0 Proton Bomb Trap Proton Bomb Trap Peak State ------------ > --- POWER ------------ Light Ion Engine > --- PROPULSION ------- Wheel Compact Wheel > --- UTILITY ---------- Large Storage Unit Improved Terrain Scanner > --- WEAPON ----------- Small Laser Light Assault Rifle > --- INVENTORY -------- Small Storage Unit Lightpack 2.0 Proton Bomb Trap Proton Bomb Trap [Rating: 12] Favorites ----------- Power Light Ion Engine Engine Light Ion Engine Propulsion Wheel Wheel Wheel Utility Improved Terrain Scanner Device Improved Terrain Scanner Storage Large Storage Unit Weapon Small Laser Energy Gun Small Laser Ballistic Gun Light Assault Rifle Launcher Rocket Launcher Build | -11 -10 -10 -10 -9 ------- Run | Yrd Mat Min Exi Min Slots Evolved . | . . . . . Power . | . . . . . Propulsion . | . . . . . Utility . | . . . . . Weapon . | . . . . . Parts Attached 17 | 9 2 4 2 . Power 2 | 1 . 1 . . Engine 2 | 1 . 1 . . Core . | . . . . . Reactor . | . . . . . Propulsion 7 | 4 2 1 . . Treads . | . . . . . Leg . | . . . . . Wheel 7 | 4 2 1 . . Hover . | . . . . . Flight . | . . . . . Utility 4 | 2 . . 2 . Device 2 | 1 . . 1 . Storage 2 | 1 . . 1 . Processor . | . . . . . Hackware . | . . . . . Protection . | . . . . . Artifact . | . . . . . Weapon 4 | 2 . 2 . . Energy Gun 1 | 1 . . . . Energy Cannon . | . . . . . Ballistic Gun 2 | 1 . 1 . . Ballistic Cannon . | . . . . . Launcher 1 | . . 1 . . Special Weapon . | . . . . . Impact Weapon . | . . . . . Slashing Weapon . | . . . . . Piercing Weapon . | . . . . . Special Melee Weapon . | . . . . . Unidentified Prototypes . | . . . . . Parts Lost 8 | . . 7 . 1 Power 1 | . . 1 . . Propulsion 4 | . . 3 . 1 Utility 1 | . . 1 . . Weapon 2 | . . 2 . . Highest Loss Streak 6 | . . 6 . 1 To Critical Strikes . | . . . . . Average Backups 2 | 2 6 3 1 2 Power . | . . . . . Propulsion . | . 3 . . . Utility 1 | . 2 2 1 2 Weapon . | . 1 1 . . Tool/Special . | . . . . . Unused Backups 4 | . . 1 1 2 Power . | . . . . . Propulsion . | . . . . . Utility 3 | . . . 1 2 Weapon 1 | . . 1 . . Tool/Special . | . . . . . Average Slot Usage (%) 93 | . 100 73 98 99 Engine 12 | . 14 7 14 14 Wheel 26 | . 28 21 28 27 Device 12 | . 14 10 12 14 Storage 14 | . 14 14 14 14 Energy Gun 13 | . 14 10 14 14 Ballistic Gun 13 | . 14 10 14 14 Peak Build Rating 12 | 9 10 10 12 12 Average Rating 9 | 7 9 6 9 11 On Entrance 7 | . 9 10 6 12 Naked Turns . | . . . . . Heaviest Build 26 | 14 14 14 26 26 Greatest Support 32 | 32 20 32 26 26 Greatest Overweight (x) 4 | . . 4 . . Average Overweight (x) . | . . . . . Largest Inventory Capacity 15 | 8 8 8 15 15 Average Capacity 12 | 7 8 8 14 15 Most Carried 8 | 6 8 8 6 6 Average Carried 4 | 2 6 5 4 6 Final Capacity 15 | 8 8 8 15 15 Final Carried 8 | 6 8 4 6 6 Class Distribution -------------------- 80% | Mutant 19% | Skirmisher Dominant Class ---------------- Mutant | -10/Materials Mutant | -10/Mines Mutant | -10/Exiles Skirmisher | -9/Mines Resources | -11 -10 -10 -10 -9 ----------- Run | Yrd Mat Min Exi Min Matter Collected 457 | 279 88 57 . 33 Remotely . | . . . . . Salvage Created 324 | 106 99 41 . 78 Parts 24 | 10 8 1 . 5 Haulers Intercepted . | . . . . . Recyclers Shooed . | . . . . . Parts Field Recycled . | . . . . . Retrieved Matter . | . . . . . Parts Self-Destructed . | . . . . . Prevented . | . . . . . Kills | -11 -10 -10 -10 -9 ------- Run | Yrd Mat Min Exi Min Combat Hostiles Destroyed 11 | . 4 3 . 4 Guns 11 | . 4 3 . 4 Classes Destroyed 5 | 2 3 . . . Tunneler 2 | 2 . . . . Recycler 1 | 1 . . . . Operator 1 | . 1 . . . Swarmer 9 | . 3 3 . 3 Grunt 2 | . 1 . . 1 Best Kill Streak 4 | 3 4 3 . 3 Combat Bots Only 4 | . 4 3 . 3 Max Kills in Single Turn 2 | 1 2 2 . 1 Gunslinging 1 | . 1 1 . . Exploded . | . . . . . Melee . | . . . . . Uniques/NPCs Destroyed . | . . . . . Combat | -11 -10 -10 -10 -9 -------- Run | Yrd Mat Min Exi Min Hostile Shots Fired 61 | . 21 23 . 17 Missed 15 | . 6 6 . 3 Hits 46 | . 15 17 . 14 Projectile 46 | . 15 17 . 14 AOE 15 | . . 15 . . Damage Taken 815 | . 119 569 . 127 Core 256 | . 40 164 . 52 Absorbed by Shields . | . . . . . Core Remaining (%) 100 | 100 . . . . Volleys Fired 36 | 3 16 4 . 13 Largest 2 | 2 2 2 . 2 Hottest 60 | 60 60 60 . 60 Shots Fired 70 | 6 30 8 . 26 Gun 69 | 6 30 7 . 26 Cannon . | . . . . . Launcher 1 | . . 1 . . Special . | . . . . . Kinetic 36 | 3 16 4 . 13 Thermal 33 | 3 14 3 . 13 Explosive 1 | . . 1 . . Electromagnetic . | . . . . . Robot Hit Streak 10 | 4 6 3 . 10 Robot Miss Streak 3 | . 2 2 . 3 Penetration Max . | . . . . . Secondary Targets 3 | . 2 1 . . Max Gunslinging Chain 1 | . 1 1 . . Shots Hit Robots 48 | 4 23 4 . 17 Core Hits 22 | 3 8 5 . 6 Critical Kills . | . . . . . Critical Parts Destroyed 1 | . . . . 1 Critical Strikes 1 | . . . . 1 Destroy 1 | . . . . 1 Melee Attacks . | . . . . . Impact . | . . . . . Slashing . | . . . . . Piercing . | . . . . . Sneak Attacks . | . . . . . Combat Hostiles . | . . . . . Follow-up Attacks . | . . . . . Damage Inflicted 538 | 48 266 58 . 166 Guns 523 | 48 266 43 . 166 Cannons . | . . . . . Explosions 15 | . . 15 . . Melee . | . . . . . Ramming . | . . . . . Kinetic 251 | 15 149 20 . 67 Thermal 272 | 33 117 23 . 99 Explosive 15 | . . 15 . . Electromagnetic . | . . . . . Impact . | . . . . . Slashing . | . . . . . Piercing . | . . . . . Highest Corruption . | . . . . . Average Corruption . | . . . . . Corruption Purged . | . . . . . Corruption Blocked . | . . . . . Overload Shots . | . . . . . Overflow Damage . | . . . . . Projectiles . | . . . . . Explosions . | . . . . . Melee . | . . . . . Knockbacks . | . . . . . Impact . | . . . . . Kinetic . | . . . . . Secondary . | . . . . . Self-Inflicted Damage 6 | . . 6 . . Shots 1 | . . 1 . . Rammed . | . . . . . Targets Rammed . | . . . . . Kicked . | . . . . . Crushed . | . . . . . Highest Temperature 70 | . 10 10 . 70 Average Temperature 28 | . 10 7 . 33 Received Heat Transfer 36 | . . . . 36 Siege Activations . | . . . . . Martial Activations . | . . . . . Shielding Activations . | . . . . . Robots Disrupted . | . . . . . Combat Hostiles . | . . . . . Robots Corrupted . | . . . . . Combat Hostiles . | . . . . . Parts Fried . | . . . . . Impact Corruptions . | . . . . . Robots Melted . | . . . . . Combat Hostiles . | . . . . . Parts Melted . | . . . . . Heat Transferred 625 | 75 275 50 . 225 Parts Sabotaged . | . . . . . Parts Stolen . | . . . . . Parts Stripped . | . . . . . Power Chain Reactions . | . . . . . Alert | -11 -10 -10 -10 -9 ------- Run | Yrd Mat Min Exi Min Maximum Alert Level . | . . . . . Low Security (%) 100 | 100 100 100 . 100 Level 1 . | . . . . . Level 2 . | . . . . . Level 3 . | . . . . . Level 4 . | . . . . . Level 5 . | . . . . . High Security . | . . . . . Max Security . | . . . . . Peak Influence 90 | 10 90 75 . 70 Initial 13 | . . 13 . . Average 15 | 1 38 14 . 7 Influence Increases 329 | 15 120 104 . 90 Destroy 0b10 Robot/C 220 | . 80 60 . 80 Destroy 0b10 Robot/NC 20 | 15 5 . . . Destroy Leader 40 | . 20 10 . 10 Destroy Structure 4 | . . 4 . . Partial Spotted 15 | . 15 . . . Lose Combat Pursuer 30 | . . 30 . . Influence Decreases 277 | 15 85 112 27 38 Entered New Map 49 | . . 22 27 . Time Decay 218 | 15 85 90 . 28 Lost Part 10 | . . . . 10 Squads Dispatched 2 | . 2 . . . Investigation 1 | . 1 . . . Extermination . | . . . . . Reinforcement 1 | . 1 . . . Assault . | . . . . . Garrison . | . . . . . Intercept . | . . . . . Searches Triggered . | . . . . . Construction Impeded . | . . . . . Haulers Reinforced . | . . . . . Active Scanning Responses . | . . . . . Cargo Convoy Interrupts . | . . . . . Stealth | -11 -10 -10 -10 -9 --------- Run | Yrd Mat Min Exi Min Distress Signals 1 | . . 1 . . Communications Jammed . | . . . . . Distress Signals . | . . . . . Times Spotted 37 | . 8 24 . 5 Peak Tracking Total 19 | . 3 19 . 3 Tactical Retreats 2 | . . 2 . . Traps | -11 -10 -10 -10 -9 ------- Run | Yrd Mat Min Exi Min Traps Triggered 1 | . 1 . . . Indirectly . | . . . . . Trap Hack Attempts . | . . . . . Triggered . | . . . . . Disarmed . | . . . . . Reprogrammed . | . . . . . Reused . | . . . . . Traps Extracted . | . . . . . Installed . | . . . . . Triggered . | . . . . . Most Traps Carried 2 | . . 2 2 2 Machines | -11 -10 -10 -10 -9 ---------- Run | Yrd Mat Min Exi Min Machines Disabled . | . . . . . Max in Single Turn . | . . . . . Machines Repaired . | . . . . . Machines Dismantled . | . . . . . Machines Sabotaged . | . . . . . Overloaded Fab Kills . | . . . . . Hacking | -11 -10 -10 -10 -9 --------- Run | Yrd Mat Min Exi Min Machines Accessed 6 | . 1 . 5 . Terminals 1 | . 1 . . . Fabricators . | . . . . . Repair Stations . | . . . . . Recycling Units . | . . . . . Scanalyzers . | . . . . . Garrison Access . | . . . . . Total Hacks 11 | . 1 . 10 . Successful 10 | . . . 10 . Failed 1 | . 1 . . . Catastrophic 1 | . 1 . . . Database Lockouts . | . . . . . Manual 1 | . . . 1 . Terminals 1 | . 1 . . . Fabricators . | . . . . . Repair Stations . | . . . . . Recycling Units . | . . . . . Scanalyzers . | . . . . . Garrison Access . | . . . . . Terminal Hacks 10 | . . . 10 . Record 9 | . . . 9 . Proto ID Catalog 1 | . . . 1 . Fabricator Hacks . | . . . . . Repair Station Hacks . | . . . . . Recycling Unit Hacks . | . . . . . Scanalyzer . | . . . . . Garrison Access Hacks . | . . . . . Unauthorized Hacks . | . . . . . Terminals . | . . . . . Fabricators . | . . . . . Repair Stations . | . . . . . Recycling Units . | . . . . . Scanalyzers . | . . . . . Garrison Access . | . . . . . Data Cores Recovered . | . . . . . Used . | . . . . . Hacking Detections 1 | . 1 . . . Full Trace Events . | . . . . . Feedback Events . | . . . . . Feedback Blocked . | . . . . . Robot Schematics Acquired . | . . . . . Robots Built . | . . . . . Authchips . | . . . . . Time . | . . . . . Total Robot Build Rating . | . . . . . Part Schematics Acquired . | . . . . . Parts Built . | . . . . . Authchips . | . . . . . Time . | . . . . . Total Part Build Rating . | . . . . . Parts Repaired . | . . . . . Time . | . . . . . Parts Recycled . | . . . . . Recycled Matter . | . . . . . Retrieved Matter . | . . . . . Retrieved Components . | . . . . . Parts Scanalyzed . | . . . . . Part Schematics Acquired . | . . . . . Parts Damaged . | . . . . . Bothacking | -11 -10 -10 -10 -9 ------------ Run | Yrd Mat Min Exi Min Used RIF Installer . | . . . . . Robots Hacked . | . . . . . Non-combat . | . . . . . Combat . | . . . . . Robot Hacks Applied . | . . . . . Relay Couplers Released . | . . . . . Fabnet Peak Effective % . | . . . . . Robots Rewired . | . . . . . Allies Hacked . | . . . . . Hacks Repelled . | . . . . . Allies | -11 -10 -10 -10 -9 -------- Run | Yrd Mat Min Exi Min Total Allies . | . . . . . Largest Group . | . . . . . Highest-Rated Group . | . . . . . Highest-Rated Ally . | . . . . . Total Orders . | . . . . . Ally Attacks . | . . . . . Total Damage . | . . . . . Kills . | . . . . . Allies Corrupted . | . . . . . Allies Melted . | . . . . . Intel | -11 -10 -10 -10 -9 ------- Run | Yrd Mat Min Exi Min Active Infowar (turns) 1907 | 68 229 296 910 404 Terrain 1907 | 68 229 296 910 404 Robot Analysis Total . | . . . . . Derelict Logs Recovered 4 | . . 3 . 1 Drone Launches . | . . . . . Drone Recoveries . | . . . . . Exploration | -11 -10 -10 -10 -9 ------------- Run | Yrd Mat Min Exi Min Turns Passed 2153 | 117 229 413 990 404 Spaces Moved 2087 | 77 210 415 1074 311 Core 7 | 2 . 5 . . Treads . | . . . . . Legs . | . . . . . Wheels 2080 | 75 210 410 1074 311 Hover . | . . . . . Flight . | . . . . . Fastest Speed 50 | 50 80 80 90 90 Average Speed 89 | 92 80 92 90 90 Slowest Speed 250 | 100 80 250 90 90 Overloaded Moves . | . . . . . Propulsion Burnouts . | . . . . . Robots Hopped . | . . . . . Potential Cave-ins . | . . . . . Cave-ins Triggered . | . . . . . Exploration Rate (%) 52 | 4 25 96 93 46 Regions Visited 4 Branch Regions 3 Pre-discovered Areas 4 | . . 3 1 . Known Exits Taken . | . . . . . Unknown Exits Taken 4 | 1 1 1 1 . Scrap Searched 1 | . . 1 . . Spaces Dug . | . . . . . Terrain Destroyed 8 | . . 8 . . Melee . | . . . . . Projectile . | . . . . . AOE 8 | . . 8 . . Terrain Rammed . | . . . . . Walls Destroyed . | . . . . . Machines Disabled . | . . . . . Actions | -11 -10 -10 -10 -9 --------- Run | Yrd Mat Min Exi Min Total 2295 | 111 240 435 1097 412 Wait 136 | 17 10 3 18 88 Move 2083 | 76 209 414 1073 311 Hop . | . . . . . Pick Up 13 | 6 2 3 2 . Fast Attach 11 | 7 . 3 1 . Attach 4 | . . 3 1 . Detach . | . . . . . Swap 5 | 2 2 1 . . Drop 7 | . 1 4 2 . Fire 36 | 3 16 4 . 13 Melee . | . . . . . Ram . | . . . . . Kick . | . . . . . Crush . | . . . . . Escape Stasis . | . . . . . Rewire . | . . . . . Trap . | . . . . . Miscellaneous . | . . . . . Route ------- -11/Scrapyard -10/Materials -10/Mines (discovered 3 exits: [*Mat x2] / *Exi) -10/Exiles (discovered 2 exits: [*Min x2]) -9/Mines History --------- Turn | Location | Event 15 | -11/Scrapyard | Discovered new exit (range 16) 118 | -11/Scrapyard | Entered Materials 237 | -10/Materials | Discovered new exit (range 9) 300 | -10/Materials | Build established: Mutant 347 | -10/Materials | Entered Mines 352 | -10/Mines | Discovered new exit (range 6) 375 | -10/Mines | Found a hidden stash of uninstalled traps 394 | -10/Mines | Received a Rocket Launcher from a helpful Derelict 415 | -10/Mines | Discovered new exit (range 13) 438 | -10/Mines | Assembled infested the area 443 | -10/Mines | Assisted by a Guerilla fighting off Assembled 454 | -10/Mines | Core integrity fell below 50% 495 | -10/Mines | Lost 6 parts (1p3n2w) 512 | -10/Mines | Learned location of Storage (-9) 646 | -10/Mines | Core integrity fell below 20% 692 | -10/Mines | Learned 2 Materials zone layouts 733 | -10/Mines | Learned location of Zion (-6) 751 | -10/Mines | Deemed a non-threat by the Exiles lab entrance 751 | -10/Mines | Discovered new exit (range 5) 760 | -10/Mines | Entered Exiles 776 | -10/Exiles | Discovered new exit (range 15) 787 | -10/Exiles | Met 8R-AWN 806 | -10/Exiles | Met EX-HEX 857 | -10/Exiles | Met EX-DEC 901 | -10/Exiles | Discovered new exit (range 12) 994 | -10/Exiles | Visited The Gauntlet 1146 | -10/Exiles | Met EX-BIN 1300 | -10/Exiles | Aligned with FarCom system 1301 | -10/Exiles | Given EX-Vault access code 1380 | -10/Exiles | Opened EX-Vault 1409 | -10/Exiles | Found Lightpack 2.0 1427 | -10/Exiles | Warned to stay clear of 0b10 Research branches 1750 | -10/Exiles | Left Exiles lab with Lightpack 2.0 1750 | -10/Exiles | Entered Mines 2039 | -9/Mines | Build established: Skirmisher 2065 | -9/Mines | Learned 2 Materials zone layouts 2095 | -9/Mines | Excavation squad dispatched 2095 | -9/Mines | A large section of the Mines collapsed 2154 | -9/Mines | Destroyed by G-34 Mercenary with Small Laser Last Messages --------------- 02094_ S-10 Pest suffers critical hit (Destroy). 02094_ Destroyed Flight Unit. 02095_ Flight Unit crushed. 02095_ ALERT: Suspicious cave-in, suspected derelict activity in mines. Dispatching escorted excavation squad. 02097_ S-10 Pest destroyed. 02098_ Acquired 20 matter. 02108_ S-10 Pest destroyed. 02109_ Acquired 7 matter. 02136_ Acquired 1 matter. 02140_ T-07 Excavator is excavating. 02142_ Acquired 1 matter. 02143_ Wheel destroyed. 02144_ T-07 Excavator is excavating. 02145_ Acquired 1 matter. 02146_ G-34 Mercenary destroyed. 02147_ Acquired 1 matter. 02149_ T-07 Excavator is excavating. 02150_ Acquired 1 matter. 02153_ T-07 Excavator is excavating. Map ----- +----------------------------------------------------+ | | | | | | | | | | | | | | | | | | | ??????????#????#???????????#???????????? | | ???????????#???????#???????????????????? | | ???????????????????#???????????????????? | | ????????????#????#?????????????????????? | | ??????????????????#????????????????????? | | ????#?#??#??????????????#??????????????? | | ???? ??????????????#??#??#?#?????????#?? | | ???????????????#?????????????????????#?? | | ??? ???#???????????????????????????????? | | ?? ? ??##?????????????????????????????? | | ??????????#???????#??? ####????????????? | | ??????????????????#???# #####????????? | | ???? ???????########??# #????#?#??? | | ???????????#### ##??# #?????????? | | ???????????## ## #### #?????????? | | ? ??????????#[t ## #?#????????? | | ??#?????????##%@# ##????????? ? | | ?????????????#g###### ######????#?#? # # | | #????????????#[#????# #????????????? # | | ?????#???????# #?#??# ##?????????????## | | ?????#???????# #???## #?????#???????? ## | | ????????????## ##???# #?#???#??????????? | | ????g??????? ????# #????????????????? | | ????? ????? ? "????# #################? | | ???????#??##? "????# #? | | ?????#????#?# "????################# ## | | ???????#????? ????????#??????????# #? | | ???????#????# g???#???????????????## #? | | ????????????? ?????#?????#????????# ## | | ???????????### #?????#?#??????#?????# | | ?????????????? ??????????????????#??#### | | ?????????????? ???????????????????????#? | | ?????????????? ????#?#?????????#???#???? | | ??????????????????????????????????????#? | | ???????????????????????????#?????????### | | ????????????????????????? ????#??????# | | ??????????????????????#??????#????#### | | ????????????????????#???????????????# | | ????????????????????????#???????#?### | | ????????????????????#?????????#?#### | | ????????????????????????? ?????## | +----------------------------------------------------+ Best States ------------- Heat Dissipation 25 Energy Generation 10 Energy Capacity 250 Matter Stores 300 Matter Capacity 300 Sight Range 16 Terrain Scan Range 16 Terrain Scan Density 10 Evasion (%) 44 Item Schematics ----------------- None Robot Schematics ------------------ None Fabricated ------------ Nothing Repaired ---------- Nothing Alien Tech Used ----------------- None Achievements -------------- None Challenges ------------ None Game ------ Seed LargeFusionKit Manual? 0 Play Time 00:38:58 Cumulative 32.3 hours Start 2025.05.28 @ 09:07:28 End 2025.05.29 @ 01:13:33 Sessions 5 Manual Loads 0 Difficulty Rogue Special Mode None Game No. 26 Rogue 26 Adventurer 0 Explorer 0 Win Type - Total 0 Types 0/0/0/0/0/0/0/0/0/0 Lore% 11 Gallery% 25 Achievement% 27 Wizard Run 0 Options --------- Layout 1 ASCII 0 Keyboard 0 Movement Mouse Keybinds 0 Fullscreen 2 Font 32/SmallcapsGlow Map View 77x35 Zoom Use 0% Tactical HUD 1 Map Filters NONE Filters NONE Steam 1 RUN: b6735d49-27a6-4710-a342-f3a2235f5ce0